bitfinex-derivatives/quotes_ETHF0:USTF0_20251013
["timestamp","ask_amount","ask_price","bid_price","bid_amount"]
[1760325258515,0.43192,4163.5,4163.4,1.0936]
[1760325258919,0.72672,4163.5,4163.4,1.0936]
[1760325259717,0.43192,4163.5,4163.4,1.0936]
[1760325262519,1.46342,4163.5,4163.4,1.0894]
[1760325262914,1.01472,4163.5,4163.4,1.0894]
[1760325263511,0.43192,4163.5,4163.4,1.0894]
[1760325263906,0.73822,4163.5,4163.4,1.0894]
[1760325264116,1.47492,4163.5,4163.4,0.3147]
[1760325264310,3.2078,4163.9,4163.0,0.1848]
[1760325264311,0.43195,4163.2,4163.1,1.0852]
[1760325264515,0.4319,4163.7,4163.6,1.0852]
[1760325264715,0.7382,4163.7,4163.6,1.0852]
[1760325264912,1.0262,4163.7,4163.6,1.0852]
[1760325265117,0.3063,4163.3,4163.2,1.0852]
[1760325265318,0.73824,4163.3,4163.2,1.0852]
[1760325265721,1.02624,4163.3,4163.2,1.0852]
[1760325266614,0.73824,4163.3,4163.2,1.0852]
[1760325267118,1.07982,4163.5,4163.0,0.3147]
[1760325267316,1.47498,4162.9,4162.8,3.20780485]
[1760325267717,1.16871,4162.6,4162.5,0.3147]
[1760325267917,1.47501,4162.6,4162.5,0.3147]
[1760325268524,1.02633,4162.4,4162.3,3.5225]
[1760325268719,1.47503,4162.4,4162.3,3.52489882]
[1760325269024,1.47503,4162.4,4162.3,3.98249882]
[1760325269321,4.68275,4163.2,4163.1,0.3147]
[1760325269522,1.47499,4162.8,4162.7,0.7723]
[1760325270222,1.47499,4162.8,4162.7,1.0852]
[1760325271222,0.43199,4162.8,4162.7,1.0852]
[1760325271524,1.47499,4162.8,4162.7,1.0852]
[1760325271725,0.73829,4162.8,4162.7,1.0852]
[1760325272129,1.47499,4162.8,4162.7,1.0852]
[1760325274528,1.47499,4162.8,4162.7,0.6276]
[1760325274725,1.47499,4162.8,4162.7,0.3147]
[1760325277130,1.47499,4162.8,4162.7,1.0852]
[1760325277326,0.73829,4162.8,4162.7,1.0852]
[1760325277525,3.2078,4163.2,4163.1,0.3147]
[1760325277831,4.68275,4163.2,4163.1,0.3147]
[1760325278025,0.5943,4162.9,4162.8,2.50547886]
[1760325278231,1.043,4162.9,4162.8,4.22864958]
[1760325278631,1.043,4162.9,4162.8,2.50547886]
[1760325279135,1.043,4162.9,4162.8,4.22864958]
[1760325279427,0.43197,4163.0,4162.9,1.0852]
[1760325279428,0.73827,4163.0,4162.9,1.0852]
[1760325279627,0.73827,4163.0,4162.9,2.03790842]
[1760325279628,1.65717,4163.0,4162.9,2.03790842]
[1760325280126,0.43199,4162.8,4162.7,1.72320842]
[1760325280430,1.47501,4162.6,4162.5,2.50547886]
[1760325282030,1.47501,4162.6,4162.5,0.3147]
[1760325284437,1.47501,4162.6,4162.5,2.48717886]
[1760325288036,1.47501,4162.6,4162.5,1.0669]
[1760325288535,1.47501,4162.6,4162.5,2.48717886]
[1760325290635,3.2078,4163.2,4162.5,2.48717886]
[1760325290636,0.43201,4162.7,4162.5,3.63325772]
[1760325290836,0.2935,4163.1,4163.0,0.1786]
[1760325291034,1.65297,4163.0,4162.9,2.03678745]
[1760325291234,1.65297,4163.0,4162.9,1.72378745]
[1760325291635,1.65297,4163.0,4162.5,0.6314]
[1760325291636,0.4681,4162.9,4162.8,1.72378745]
[1760325291939,1.0728,4162.9,4162.8,2.01198745]
[1760325292241,1.0728,4162.9,4162.8,2.75708745]
[1760325292637,1.0728,4162.9,4162.8,1.0333]
[1760325294037,1.26201,4163.5,4162.8,1.0333]
[1760325294038,0.43191,4163.7,4163.6,0.5934]
[1760325294229,0.43191,4163.7,4163.6,2.45357886]
[1760325294547,0.43189,4163.8,4163.7,0.7451]
[1760325294741,0.43189,4163.8,4163.7,2.45357886]
[1760325295742,0.43187,4164.0,4163.7,4.16888122]
[1760325295944,0.43185,4164.2,4164.1,1.0333]
[1760325296241,0.43185,4164.2,4164.1,2.75553994]
[1760325296542,0.73425,4164.2,4164.1,2.75553994]
[1760325297032,1.50465,4164.2,4164.1,2.75553994]
[1760325297233,3.2078,4164.3,4163.8,1.72223994]
[1760325297234,1.0728,4163.9,4163.8,1.72223994]
[1760325297542,1.0728,4163.9,4163.8,1.0333]
[1760325299246,1.50469,4163.8,4163.7,1.72223994]
[1760325299445,1.2609,4163.5,4163.4,3.2078]
[1760325299937,1.0728,4163.3,4163.2,1.72223994]
[1760325300137,1.0728,4163.1,4163.0,1.72223994]
[1760325300443,1.69287,4163.0,4162.9,3.2078]
[1760325301439,1.0728,4162.7,4162.5,1.72223994]
[1760325301639,0.4681,4162.6,4162.5,1.72223994]
[1760325301838,1.0728,4162.6,4162.5,1.72223994]
[1760325302437,1.69292,4162.5,4162.3,0.00239882]
[1760325302841,3.66688334,4162.4,4162.3,0.00239882]
[1760325303036,4.13498334,4162.4,4162.3,0.00239882]
[1760325305139,1.0728,4162.4,4162.3,0.73049882]
[1760325305438,1.0728,4162.4,4162.3,1.03569882]
[1760325305845,1.0728,4162.4,4162.3,0.00239882]
[1760325305846,4.16755191,4162.4,4162.3,0.00239882]
[1760325317751,1.0728,4161.2,4161.1,3.2078]
[1760325318053,1.50496,4161.2,4161.1,3.2078]
[1760325318655,4.64520753,4161.2,4161.1,3.2078]
[1760325318852,4.21546094,4161.2,4161.1,3.21024511]
[1760325319052,0.00241341,4161.2,4161.1,4.24354511]
[1760325319448,1.08009,4162.4,4161.1,4.24354511]
[1760325319449,0.43203,4162.5,4162.2,0.5934]
[1760325319651,0.7928,4162.5,4161.9,0.4399]
[1760325319845,0.7928,4162.5,4161.7,3.2078]
[1760325319846,1.0728,4162.3,4162.2,1.0333]
[1760325320054,0.4681,4162.8,4162.4,0.5934]
[1760325320251,0.3024,4162.5,4162.4,0.5934]
[1760325320447,1.0748481,4162.5,4162.4,0.5934]
[1760325320653,1.0728,4162.3,4162.2,3.8012]
[1760325320858,0.1901481,4162.5,4162.2,3.8012]
[1760325320859,0.7705,4162.4,4162.3,1.46534]
[1760325321057,0.7705,4162.4,4162.3,1.0333]
[1760325321255,1.0728,4162.4,4162.3,1.0333]
[1760325322756,1.0728,4162.4,4161.5,1.25082]
[1760325322757,1.2396,4162.0,4161.8,1.71626067]
[1760325322962,1.0621,4161.8,4161.7,3.5121]
[1760325323259,1.0621,4161.8,4161.7,3.2078]
[1760325323651,0.5992,4161.2,4161.1,3.21024511]
[1760325323848,1.49426,4161.2,4161.1,0.00244511]
[1760325324056,4.66089992,4161.2,4161.1,0.00244511]
[1760325324359,7.26949992,4161.2,4161.1,0.00244511]
[1760325324557,0.89504,4161.4,4161.1,3.21024511]
[1760325324855,3.56031887,4161.2,4161.1,3.21024511]
[1760325325061,3.6707,4161.2,4161.1,0.00244511]
[1760325325358,6.7393242,4161.2,4161.1,0.00244511]
[1760325326153,0.1775,4161.5,4161.1,0.47224511]
[1760325326359,0.4629,4161.4,4161.2,0.4698]
[1760325326555,3.2078,4161.7,4161.5,0.43212]
[1760325326859,3.2078,4161.7,4161.6,0.4698]
[1760325327161,3.6707,4161.7,4161.6,0.4698]
[1760325328062,0.4321,4161.8,4161.6,0.4698]
[1760325328264,0.4321,4161.8,4161.7,0.4698]
[1760325328859,3.2078,4162.2,4161.7,0.4698]
[1760325329061,0.4340781,4162.5,4162.0,1.71626067]
[1760325329363,0.4629,4162.4,4162.3,0.4698]
[1760325330260,0.4629,4162.4,4161.5,0.1751]
[1760325330261,0.4629,4161.9,4161.8,1.71626067]
[1760325330459,0.895,4161.8,4161.7,1.71626067]
[1760325330860,0.895,4161.8,4161.3,3.2078]
[1760325330861,0.4629,4162.0,4161.9,0.90189]
[1760325331060,0.43206,4162.2,4161.9,0.4698]
[1760325331267,0.4629,4162.0,4161.9,2.19214217]
[1760325332163,3.3873481,4162.5,4161.9,1.72234217]
[1760325332164,0.4629,4162.1,4161.9,1.72234217]
[1760325332370,0.4629,4162.4,4161.9,1.72234217]
[1760325333370,0.89496,4162.2,4161.9,2.19214217]
[1760325333565,0.43206,4162.2,4161.9,2.19214217]
[1760325334069,0.43207,4162.1,4161.9,2.19214217]
[1760325334265,0.6404,4162.0,4161.9,1.72234217]
[1760325334659,0.4629,4161.9,4161.6,1.72234217]
[1760325335071,6.45612206,4162.0,4161.5,1.72234217]
[1760325335072,3.07082206,4161.8,4161.5,1.72234217]
[1760325335267,0.4629,4161.7,4161.5,1.72234217]
[1760325335571,3.06573466,4161.9,4161.5,1.72234217]
[1760325335770,3.3853,4162.0,4161.5,1.72234217]
[1760325335970,0.43211,4161.7,4161.5,1.72234217]
[1760325336265,0.4629,4161.4,4161.1,1.72478728]
[1760325336669,0.4629,4161.2,4161.1,0.00244511]
[1760325337075,3.51607014,4161.2,4161.1,0.00244511]
[1760325340474,4.11527014,4161.2,4161.1,0.00244511]
[1760325350983,1.47825,4160.3,4160.2,3.2078]
[1760325351888,1.47825,4160.3,4160.2,3.21055613]
[1760325352185,4.65321913,4160.3,4160.2,0.00275613]
[1760325354485,4.65321913,4160.3,4160.2,0.29285613]
[1760325354690,4.65321913,4160.3,4160.2,0.00275613]
[1760325361387,4.65321913,4160.3,4160.2,0.29285613]
[1760325361694,4.65321913,4160.3,4160.2,0.00275613]
[1760325362396,0.3058,4160.3,4160.2,1.02175613]
[1760325362688,4.2429,4160.7,4160.6,1.45122]
[1760325364592,3.2078,4161.2,4161.1,1.45117]
[1760325364993,3.2078,4161.8,4161.7,1.45111]
[1760325365193,0.4521,4162.0,4161.5,0.1677]
[1760325365194,0.71735,4162.3,4162.2,0.5859]
[1760325365495,0.71735,4162.3,4162.2,1.019]
[1760325365496,0.2853,4162.3,4162.2,1.019]
[1760325365699,0.2853,4162.3,4162.1,0.43206]
[1760325365700,3.2098481,4162.5,4162.4,1.019]
[1760325366087,4.4246481,4162.5,4162.4,0.2901]
[1760325366389,1.0351,4162.1,4162.0,0.2901]
[1760325366998,1.0351,4162.1,4162.0,1.019]
[1760325368285,1.0351,4162.1,4162.0,0.5859]
[1760325368486,1.0351,4162.1,4162.0,0.2901]
[1760325368697,0.7374,4162.1,4162.0,1.019]
[1760325368887,0.2853,4162.1,4162.0,1.019]
[1760325369399,0.7374,4162.4,4162.3,1.019]
[1760325369696,1.0351,4162.4,4162.3,1.019]
[1760325369896,3.8215781,4162.5,4162.0,0.1677]
[1760325369897,1.01507,4162.1,4162.0,0.2901]
[1760325370198,1.46717,4162.1,4162.0,0.2901]
[1760325370792,1.4672,4161.8,4161.7,3.4979]
[1760325370993,0.1797,4162.0,4161.4,1.019]
[1760325370994,1.46723,4161.5,4161.4,1.019]
[1760325371394,0.43215,4161.3,4161.2,4.92994377]
[1760325371696,1.0351,4160.9,4160.8,0.2901]
[1760325372193,0.4521,4160.5,4160.3,1.72214377]
[1760325372397,1.46734,4160.4,4160.3,1.72214377]
[1760325372590,1.0351,4160.3,4160.2,3.21055613]
[1760325372897,4.15938486,4160.3,4160.2,0.00275613]
[1760325374390,7.36718486,4160.3,4160.2,0.00275613]
[1760325376298,0.583,4159.2,4159.1,3.2078]
[1760325376601,1.0351,4158.9,4158.8,2.01224377]
[1760325377195,1.0351,4158.9,4158.8,0.2901]
[1760325377397,1.03778657,4158.9,4158.8,0.00274801]
[1760325377702,1.03778657,4158.9,4158.8,0.29284801]
[1760325377901,1.03778657,4158.9,4158.8,0.72594801]
[1760325378501,0.00268657,4158.9,4158.8,1.02174801]
[1760325378707,0.00268657,4158.9,4158.8,1.45415801]
[1760325379404,0.4521,4160.2,4160.1,0.4331]
[1760325379602,3.64006,4160.3,4159.5,0.1677]
[1760325379802,3.64006,4160.3,4160.0,0.43228]
[1760325380097,0.4521,4160.2,4160.1,0.4331]
[1760325380305,0.45478147,4160.2,4160.1,0.4331]
[1760325380499,0.43227,4160.1,4159.6,0.43232]
[1760325380699,0.00268147,4160.2,4159.8,0.4331]
[1760325381001,0.00268147,4160.2,4160.1,3.6409]
[1760325381394,0.4323,4159.9,4159.3,0.43235]
[1760325381703,0.4323,4159.9,4159.2,1.71629249]
[1760325381704,0.4379,4160.1,4159.9,0.86399]
[1760325381903,0.00268147,4160.2,4160.1,0.4317]
[1760325382301,0.00268147,4160.2,4159.8,3.2078]
[1760325382302,0.4379,4160.0,4159.9,0.4317]
[1760325383001,0.7273,4160.0,4159.9,0.9924]
[1760325383200,0.29208147,4160.2,4160.1,0.5607]
[1760325383403,0.29208147,4160.2,4160.1,0.9924]
[1760325384401,0.72998147,4160.2,4160.1,0.9924]
[1760325385000,0.43229,4160.0,4159.8,3.2078]
[1760325385206,0.4379,4159.9,4159.8,4.2002]
[1760325385507,0.43229,4160.0,4159.9,0.9924]
[1760325386612,1.16225147,4160.2,4160.1,0.5607]
[1760325386808,1.16225147,4160.2,4160.1,0.9924]
[1760325387103,0.00268147,4160.2,4160.1,0.9924]
[1760325387298,0.72169,4159.9,4159.8,0.2868]
[1760325387501,1.44739,4159.9,4159.8,0.2868]
[1760325388105,1.44744,4159.4,4159.3,3.4946]
[1760325388507,1.44744,4159.4,4159.3,3.2078]
[1760325388708,1.4475,4158.9,4158.8,0.00274801]
[1760325389213,4.54068725,4158.9,4158.8,0.00274801]
[1760325391304,0.72186,4158.3,4158.2,3.2078]
[1760325391509,1.15981,4157.8,4157.7,0.7185]
[1760325391920,0.7273,4157.8,4157.7,0.7185]
[1760325392113,0.2894,4157.8,4157.7,0.9924]
[1760325392308,0.2894,4157.8,4157.7,0.99432006]
[1760325392614,0.7273,4157.8,4157.7,0.99432006]
[1760325394617,3.64022,4158.7,4158.6,0.5607]
[1760325394813,3.64022,4158.7,4158.6,0.9924]
[1760325394814,0.87032,4158.7,4158.6,0.9924]
[1760325395012,0.72182,4158.7,4158.6,0.9924]
[1760325395220,1.15972,4158.7,4158.6,0.9924]
[1760325395915,0.72182,4158.7,4158.6,0.9924]
[1760325396120,0.43242,4158.7,4158.6,0.9924]
[1760325396313,1.44752,4158.7,4158.6,0.5607]
[1760325396516,1.44752,4158.7,4158.6,0.2868]
[1760325397020,1.44752,4158.7,4158.6,0.7185]
[1760325397217,1.44752,4158.7,4158.6,0.9924]
[1760325397414,0.72182,4158.7,4158.6,0.9924]
[1760325397614,1.44752,4158.7,4158.6,0.5607]
[1760325398419,1.44752,4158.7,4158.6,0.9924]
[1760325399210,1.44752,4158.7,4158.6,0.2868]
[1760325400114,0.43245,4158.4,4158.2,0.4317]
[1760325400428,1.0151,4158.3,4158.2,0.7185]
[1760325400617,0.2894,4158.3,4158.2,0.9924]
[1760325400817,0.43244,4158.6,4158.5,0.9924]
[1760325401024,0.43244,4158.6,4158.5,1.1597]
[1760325401727,0.72184,4158.6,4158.5,1.1597]
[1760325401927,1.15974,4158.6,4158.5,0.9924]
[1760325402730,0.1681,4159.0,4158.5,0.728]
[1760325402932,0.2894,4158.7,4158.6,0.7056]
[1760325403124,0.1681,4159.0,4158.6,0.7056]
[1760325403125,0.4379,4159.0,4158.7,0.4317]
[1760325403326,1.15969,4159.0,4158.9,0.5607]
[1760325403629,1.44749,4159.0,4158.9,0.5607]
[1760325403829,1.61559,4159.0,4158.9,0.2868]
[1760325404826,1.45433,4158.6,4158.5,0.3014]
[1760325405427,0.43242,4158.8,4158.7,0.5903]
[1760325405619,0.4273,4159.3,4158.7,4.2333]
[1760325405825,3.08961068,4159.1,4159.0,1.1944]
[1760325406026,0.43237,4159.2,4159.0,4.39938]
[1760325406229,0.73167,4159.2,4159.1,1.0255]
[1760325406620,0.2993,4159.2,4159.1,1.0255]
[1760325406826,0.2993,4159.7,4159.6,1.0255]
[1760325407020,0.73159,4160.0,4159.9,1.0255]
[1760325407221,0.43229,4160.0,4159.9,1.0255]
[1760325407423,0.43495147,4160.2,4160.0,0.4352]
[1760325407626,0.43495147,4160.2,4159.9,1.02259]
[1760325407627,1.45685147,4160.2,4160.1,1.0255]
[1760325407827,1.45685147,4160.2,4160.1,0.5903]
[1760325408033,1.45685147,4160.2,4160.1,0.3014]
[1760325409224,0.5946,4159.4,4159.3,0.7366]
[1760325409424,0.60909,4160.0,4159.2,1.71629249]
[1760325409630,0.73159,4160.0,4159.9,1.0255]
[1760325409825,0.00268147,4160.2,4160.1,0.3014]
[1760325409826,0.43494147,4160.2,4160.1,0.3014]
[1760325410031,1.45684147,4160.2,4160.1,0.3014]
[1760325410229,0.4323,4159.9,4159.7,0.4352]
[1760325410533,0.4323,4159.9,4159.8,0.7366]
[1760325410534,1.1589,4159.9,4159.8,0.7366]
[1760325410832,1.1589,4159.9,4159.8,1.0255]
[1760325411734,1.4542,4159.9,4159.8,1.0255]
[1760325413836,0.7316,4159.9,4159.8,1.0255]
[1760325414636,0.4323,4159.9,4159.8,1.0255]
[1760325414825,0.4323,4159.9,4159.8,1.4578]
[1760325415032,0.4323,4159.9,4159.8,1.0255]
[1760325415236,1.1145,4159.9,4159.8,1.0255]
[1760325415835,0.6822,4159.9,4159.8,1.0255]
[1760325416341,0.00268147,4160.2,4160.1,1.42097]
[1760325416532,1.0804,4161.3,4160.1,1.42097]
[1760325416533,0.43217,4161.1,4161.0,0.4195]
[1760325416733,1.11437,4161.1,4161.0,0.9887]
[1760325416932,0.2737,4160.4,4160.3,0.72815]
[1760325417137,0.9584,4160.4,4160.3,0.7154]
[1760325417337,0.9584,4160.4,4160.3,0.9887]
[1760325417536,0.96141141,4160.4,4160.3,0.99072862]
[1760325418835,0.96141141,4160.4,4160.3,0.00202862]
[1760325423036,0.00301141,4160.4,4160.3,0.99072862]
[1760325423239,0.96141141,4160.4,4160.3,0.99072862]
[1760325423539,0.00301141,4160.4,4160.3,0.99072862]
[1760325423742,0.00301141,4160.4,4160.3,2.71012411]
[1760325424147,0.43214,4161.4,4161.3,0.9887]
[1760325424946,1.39054,4161.4,4161.3,0.9887]
[1760325425141,0.5499,4160.9,4160.8,0.7281]
[1760325425348,0.4085,4161.3,4161.1,0.43217]
[1760325425560,0.4085,4161.2,4161.1,1.42087]
[1760325425748,0.6822,4161.2,4161.1,1.42087]
[1760325426251,0.6822,4161.2,4161.1,0.9887]
[1760325426543,0.1719,4161.0,4160.5,3.2078]
[1760325426852,0.9584,4160.4,4160.3,0.73017862]
[1760325427047,0.9584,4160.4,4160.3,0.00202862]
[1760325427240,3.58368932,4160.4,4160.3,0.00202862]
[1760325427441,0.4085,4159.9,4159.4,3.2078]
[1760325427645,0.1719,4160.0,4159.4,3.2078]
[1760325427846,0.4085,4159.9,4159.4,3.2078]
[1760325428046,0.1719,4160.0,4159.4,3.2078]
[1760325428253,0.4085,4159.9,4159.4,3.2078]
[1760325428453,0.1719,4160.0,4159.5,0.4195]
[1760325428853,0.4085,4159.6,4159.5,0.4195]
[1760325429552,0.4323,4159.9,4159.6,0.43232]
[1760325429753,0.1719,4160.0,4159.6,0.85182]
[1760325429754,0.43229,4160.0,4159.6,0.85182]
[1760325429955,0.4085,4159.9,4159.7,0.4195]
[1760325430153,0.8408,4159.9,4159.7,0.4195]
[1760325430655,0.8408,4159.9,4159.6,0.43232]
[1760325430853,0.43231,4159.8,4159.5,0.1721]
[1760325431151,3.2078,4160.4,4159.4,5.36051271]
[1760325431152,0.84083,4159.5,4159.4,3.20960096]
[1760325431355,0.4085,4159.5,4159.4,3.62910096]
[1760325431849,0.43232,4159.7,4159.4,3.62910096]
[1760325431850,0.43232,4159.7,4159.4,3.20960096]
[1760325432254,0.4323,4159.9,4159.6,0.4195]
[1760325432554,0.8408,4159.9,4159.5,0.43233]
[1760325432756,0.43231,4159.8,4159.5,0.43233]
[1760325433055,0.70601,4159.8,4159.7,0.9887]
[1760325433452,1.39071,4159.8,4159.7,0.5692]
[1760325433649,1.39071,4159.8,4159.7,0.2959]
[1760325433855,0.43229,4160.0,4159.8,0.4195]
[1760325434057,0.70599,4160.0,4159.9,0.9887]
[1760325434256,1.39069,4160.0,4159.9,0.9887]
[1760325434457,1.39069,4160.0,4159.9,0.5692]
[1760325434761,1.39069,4160.0,4159.5,2.31017175]
[1760325434762,4.32224,4160.4,4160.3,0.5692]
[1760325434948,0.43224,4160.5,4160.3,0.9887]
[1760325435153,0.9584,4160.4,4160.3,0.9887]
[1760325435758,0.1719,4160.0,4159.9,4.92637175]
[1760325435961,0.43229,4159.9,4159.7,1.71857175]
[1760325436160,0.5499,4159.8,4159.7,2.01447175]
[1760325436360,0.9584,4159.8,4159.7,0.7154]
[1760325436658,0.9584,4159.8,4159.7,0.9887]
[1760325436863,0.2737,4159.8,4159.7,0.9887]
[1760325438069,0.2737,4160.0,4159.9,0.43229]
[1760325438371,0.2737,4160.0,4159.8,1.72439016]
[1760325438372,0.98219,4159.9,4159.8,1.72439016]
[1760325438669,1.39069,4159.9,4159.8,1.72439016]
[1760325438870,1.39069,4159.9,4159.8,2.02029016]
[1760325440570,1.39069,4159.9,4159.8,0.7154]
[1760325441072,1.39069,4159.9,4159.8,0.9887]
[1760325441273,0.43231,4159.7,4159.6,1.72439016]
[1760325441473,0.9584,4159.6,4159.5,1.72439016]
[1760325441674,1.59493,4159.5,4159.4,4.93399112]
[1760325441872,1.59493,4159.5,4159.4,3.20960096]
[1760325442073,4.6880857,4159.5,4159.4,0.00180096]
[1760325442279,0.7076,4159.5,4159.4,0.58010096]
[1760325442472,0.43231,4159.8,4159.5,0.7543]
[1760325442671,0.43229,4160.0,4159.7,0.5783]
[1760325442870,0.43229,4160.0,4159.9,0.9978]
[1760325444279,0.43229,4160.0,4159.9,0.5783]
[1760325444280,1.43389,4160.0,4159.9,0.5783]
[1760325444476,1.43389,4160.0,4159.6,1.72439016]
[1760325444477,0.43233,4159.5,4159.4,4.93399112]
[1760325444776,1.59493,4159.5,4159.4,5.22119112]
[1760325444977,1.59493,4159.5,4159.4,2.01339112]
[1760325445177,1.43393,4159.5,4159.4,0.70850096]
[1760325445377,1.43393,4159.5,4159.4,0.28900096]
[1760325446679,0.43233,4159.5,4159.4,0.99960096]
[1760325447777,3.2078,4159.9,4159.5,0.4195]
[1760325447973,3.9202,4159.9,4159.8,0.9978]
[1760325448174,0.4323,4159.9,4159.8,0.9978]
[1760325448777,0.4275,4160.2,4160.0,0.5783]
[1760325448778,0.43228,4160.1,4160.0,0.5783]
[1760325448980,0.43228,4160.1,4160.0,0.9978]
[1760325450669,0.43228,4160.1,4160.0,1.1738]
[1760325450876,1.13988,4160.1,4160.0,0.9978]
[1760325452281,0.43228,4160.1,4160.0,1.1738]
[1760325453885,0.43221,4160.7,4160.6,0.9978]
[1760325454182,3.64,4160.9,4160.6,0.9978]
[1760325454371,3.64,4160.9,4160.5,1.89952213]
[1760325454372,3.2078,4160.9,4160.8,0.9978]
[1760325456182,0.43219,4161.0,4160.9,0.4195]
[1760325456377,0.43219,4161.0,4160.9,0.9978]
[1760325457678,0.43044552,4161.4,4160.9,0.9978]
[1760325457679,0.00294552,4161.4,4161.0,0.5955]
[1760325457872,3.2078,4162.0,4161.5,0.4632]
[1760325458076,1.13971,4161.8,4161.7,2.72087419]
[1760325458379,1.43371,4161.8,4161.7,0.9978]
[1760325458779,1.43639922,4161.8,4161.7,0.9978]
[1760325459172,1.43639922,4161.8,4161.0,3.3838]
[1760325459173,1.00622,4161.6,4161.4,1.72307419]
[1760325459379,1.43374,4161.4,4161.3,0.2872]
[1760325459677,0.43018922,4161.8,4161.4,0.4195]
[1760325459875,1.14238922,4161.8,4161.7,0.9978]
[1760325460273,0.00268922,4161.8,4161.7,0.9978]
[1760325461077,0.00268922,4161.8,4161.7,2.72087419]
[1760325461281,0.43204,4162.4,4162.3,0.9978]
[1760325461481,0.43204,4162.4,4162.3,4.2056]
[1760325461685,0.43198,4162.9,4162.8,0.5783]
[1760325461886,1.43358,4162.9,4162.8,0.2872]
[1760325462383,1.43533697,4162.9,4162.8,0.28927317]
[1760325462786,1.43533697,4162.9,4162.8,0.00207317]
[1760325463282,4.5114502,4162.9,4162.8,0.00207317]
[1760325463479,4.5114502,4162.9,4161.0,0.176]
[1760325463480,1.0062,4161.8,4161.6,3.2078]
[1760325463682,0.4275,4161.7,4161.6,3.2078]
[1760325464483,0.4321,4161.8,4161.7,0.4279]
[1760325464982,0.8714,4161.8,4161.7,0.4279]
[1760325466781,0.4321,4161.8,4161.7,0.4279]
[1760325467787,0.4321,4161.8,4161.7,0.9758]
[1760325469486,0.9992,4161.7,4161.6,0.00234747]
[1760325469788,0.9992,4161.7,4161.6,0.97814747]
[1760325470090,0.4321,4161.8,4161.6,0.55024747]
[1760325470291,0.4321,4161.8,4161.7,0.9758]
[1760325470489,3.2078,4162.6,4161.8,0.85999]
[1760325470679,3.4899,4162.6,4162.5,0.9758]
[1760325470991,4.63901,4162.6,4162.5,0.5479]
[1760325471288,4.63901,4162.6,4162.5,0.9758]
[1760325471791,3.63981,4162.6,4162.5,1.1371]
[1760325472190,3.91241,4162.6,4162.5,1.1371]
[1760325472692,4.33001,4162.6,4162.5,0.9758]
[1760325473797,3.63981,4162.6,4162.5,1.1371]
[1760325473985,0.43201,4162.6,4162.5,1.1371]
[1760325474491,0.43373697,4162.9,4162.8,0.5488]
[1760325474685,0.2726,4162.4,4162.3,3.482]
[1760325474992,1.39683,4162.4,4162.3,0.2742]
[1760325475289,1.39683,4162.4,4162.3,0.5488]
[1760325475478,0.43203,4162.4,4162.3,0.958]
[1760325475685,0.43201,4162.6,4162.5,1.1193]
[1760325476688,1.12221,4162.6,4162.5,0.958]
[1760325477092,0.43205,4162.2,4161.8,1.71828491]
[1760325477282,0.00175697,4162.9,4161.8,0.958]
[1760325477283,0.70469,4161.9,4161.8,0.958]
[1760325477482,1.39689,4161.9,4161.8,0.958]
[1760325477688,0.70469,4161.9,4161.8,0.958]
[1760325478788,1.39689,4161.9,4161.8,0.2742]
[1760325478988,1.39691,4161.7,4161.6,0.00234747]
[1760325479695,0.4322,4160.8,4160.7,4.92608491]
[1760325479889,0.4322,4160.8,4160.7,3.2078]
[1760325479890,0.8498,4160.8,4160.7,3.2078]
[1760325480194,0.84985,4160.3,4160.2,3.617]
[1760325480382,0.43224,4160.5,4160.2,3.617]
[1760325480581,0.43221,4160.8,4160.6,0.4092]
[1760325480784,0.43221,4160.8,4160.7,0.4092]
[1760325481585,0.43221,4160.8,4160.7,3.617]
[1760325481891,0.43217,4161.2,4161.1,0.4092]
[1760325482095,0.43217,4161.2,4161.1,2.12844652]
[1760325482291,0.43214,4161.4,4161.2,0.4092]
[1760325482597,0.43214,4161.4,4161.3,0.4092]
[1760325482789,0.84974,4161.4,4161.3,0.4092]
[1760325483485,1.01178,4161.0,4160.9,1.71924652]
[1760325483684,0.8498,4160.8,4160.7,4.92704652]
[1760325483885,0.8498,4160.8,4160.7,3.617]
[1760325484302,0.8498,4160.8,4160.7,3.2078]
[1760325485993,0.8498,4160.8,4160.6,0.00178143]
[1760325485994,0.4176,4160.7,4160.6,0.00178143]
[1760325487887,0.4176,4160.7,4160.6,0.41098143]
[1760325489297,0.4176,4160.7,4160.6,0.00178143]
[1760325490498,0.6902,4160.7,4160.6,0.27598143]
[1760325490702,0.9648,4160.7,4160.6,0.68518143]
[1760325490997,0.9648,4160.7,4160.6,0.00178143]
[1760325491194,4.02628335,4160.7,4160.6,0.00178143]
[1760325493000,0.9648,4159.5,4159.4,3.7566]
[1760325493298,0.162,4160.0,4159.4,3.7566]
[1760325493299,0.43232,4159.7,4159.4,4.1658]
[1760325493495,0.43233,4159.6,4159.5,0.7101]
[1760325494001,0.70742412,4159.6,4159.5,0.96078185]
[1760325494304,1.12502412,4159.6,4159.5,0.96078185]
[1760325494601,1.39962412,4159.6,4159.5,0.27698185]
[1760325496595,1.39962412,4159.6,4159.5,0.00278185]
[1760325496794,1.39962412,4159.6,4159.5,0.27698185]
[1760325497993,0.43482412,4159.6,4159.5,0.96078185]
[1760325498200,0.43482412,4159.6,4159.5,1.12208185]
[1760325499002,0.70742412,4159.6,4159.5,1.12208185]
[1760325500104,0.43482412,4159.6,4159.5,1.12208185]
[1760325500294,0.00249412,4159.6,4159.5,1.12208185]
[1760325500496,3.4804,4160.4,4160.3,0.958]
[1760325500803,3.64006,4160.4,4160.3,0.958]
[1760325501004,3.2078,4161.0,4160.3,0.5488]
[1760325501194,0.43217,4161.3,4161.2,0.958]
[1760325501396,0.00257756,4161.3,4161.2,0.43217]
[1760325501795,0.00257756,4161.3,4161.0,5.08834652]